fUST/lending_fUST_20251217
["ID","MTS","AMOUNT","RATE_DAILY","PERIOD"]
[398900775,1765979549915,150.0,8.626e-05,2]
[398900776,1765979550419,161.8,9.41e-05,2]
[398900827,1765980615133,150.0,8.113e-05,2]
[398900828,1765980615528,298.84,8.851e-05,2]
[398900829,1765980615964,448.26,9.588e-05,2]
[398900831,1765980631491,-412.54992611,0.00010326,2]
[398900862,1765980631789,-185.14007389,0.00010326,2]
[398900863,1765980631798,-183.4868041,0.00011063,2]
[398900864,1765980631810,-563.6231959,0.00011063,2]
[398900865,1765980631820,-757.09991923,0.00011801,2]
[398901010,1765980642935,-139.43008077,0.00011801,2]
[398901012,1765980642945,-591.0,0.00012142,2]
[398901014,1765980642954,-150.0,0.00012142,2]
[398901016,1765980642973,-207.04581584,0.00012142,2]
[398901018,1765980642983,-351.05627228,0.00012243,2]
[398901020,1765980642993,-1045.95,0.00012539,2]
[398901021,1765980643003,-376.66805027,0.00013273,2]
[398901022,1765980643012,-1195.37,0.00013276,2]
[398901023,1765980643021,-1200.0,0.00013698,2]
[398901024,1765980643031,-300.0,0.00013698,2]
[398901025,1765980643040,-300.0,0.00013698,2]
[398901026,1765980643051,-270.0,0.00013698,2]
[398901027,1765980643060,-300.0,0.00013698,2]
[398901028,1765980643069,-500.99949186,0.00013699,2]
[398901029,1765980643079,-500.72232938,0.00013699,2]
[398901030,1765980643089,-221.01601573,0.00013699,2]
[398901031,1765980643098,-500.0,0.00013699,2]
[398901032,1765980643108,-500.788438,0.00013699,2]
[398901033,1765980643117,-500.0,0.00013699,2]
[398901034,1765980643126,-500.0,0.00013699,2]
[398901035,1765980643135,-1344.79,0.00014014,2]
[398901036,1765980643144,-177.0,0.00014142,2]
[398901038,1765980643153,-1494.22,0.00014751,2]
[398901040,1765980643163,-204.0,0.00016142,2]
[398901042,1765980643172,-374.78942264,0.00017381,2]
[398901044,1765980643182,-3000.0,0.000179,2]
[398901046,1765980643191,-231.0,0.00018142,2]
[398901047,1765980643200,-1000.0,0.000182,2]
[398901048,1765980643209,-198.08824625,0.00018295,2]
[398901049,1765980643219,-10000.0,0.000188,2]
[398901050,1765980643228,-303.03000726,0.000189,2]
[398901051,1765980643238,-2526.0,0.00019,2]
[398901052,1765980643247,-1017.0,0.000192,3]
[398901053,1765980643256,-2000.0,0.00019442,9]
[398901054,1765980643266,-258.0,0.00020142,2]
[398901055,1765980643275,-5000.0,0.00021,2]
[398901056,1765980643284,-247.6505965,0.00021973,2]
[398901057,1765980643294,-407.5,0.00022134,2]
[398901058,1765980643307,-285.0,0.00022142,2]
[398901059,1765980643316,-308.58778706,0.00024142,2]
[398901060,1765980643325,-3000.0,0.00025,2]
[398901061,1765980643334,-2000.0,0.00028429,15]
[398901062,1765980643345,-2000.0,0.00028757,5]
[398901063,1765980643354,-2000.0,0.00028995,3]
[398901064,1765980643363,-407.5,0.00029213,3]
[398901065,1765980643374,-2000.0,0.00029899,15]
[398901066,1765980643383,-2000.0,0.00029999,15]
[398901067,1765980643392,-151.0,0.0003,14]
[398901068,1765980643402,-2000.0,0.00030599,15]
[398901069,1765980643411,-2000.0,0.00030999,14]
[398901070,1765980643420,-2000.0,0.00031036,15]
[398901071,1765980643430,-176.145,0.00031037,28]
[398901072,1765980643439,-2000.0,0.00031299,15]
[398901073,1765980643448,-2000.0,0.00031899,7]
[398901074,1765980643458,-349.40484825,0.0003201,2]
[398901075,1765980643467,-1017.89203496,0.0003279,2]
[398901076,1765980643476,-1017.89203496,0.00032793,2]
[398901077,1765980643485,-1017.89203496,0.00032795,2]
[398901078,1765980643494,-1017.89203496,0.00032798,2]
[398901079,1765980643503,-1017.89203496,0.000328,2]
[398901080,1765980643512,-7291.09016991,0.000328,2]
[398901081,1765980643521,-213801.99146151,0.000328,4]
[398901082,1765980646161,-8896.120985,0.000328,4]
[398901091,1765980665146,212.81,0.0001,2]
[398901092,1765980727883,212.82,0.0001,2]
[398901094,1765980788381,212.81,0.0001,2]
[398901095,1765980846806,212.82,0.0001,2]
[398901096,1765980852197,150.0,9.997e-05,2]
[398901097,1765980904408,212.81,0.0001,2]
[398901098,1765981009412,150.0,9.969e-05,2]
[398901118,1765981027021,172.3477318,9.579e-05,2]
[398901128,1765981152220,-5000.0,0.00010801,2]
[398901129,1765981158422,-5000.0,0.0001091,2]
[398901130,1765981164218,-221.03865995,0.0001136,2]
[398901131,1765981166745,639.29792731,0.00011246,2]
[398901132,1765981166903,150.0,9.512e-05,2]
[398901133,1765981167339,228.43,0.00010377,2]
[398901134,1765981201051,212.82,0.0001,2]
[398901135,1765981247926,150.0,8.523e-05,2]
[398901136,1765981248344,299.86,9.297e-05,2]
[398901137,1765981261618,-247.28740279,0.00010072,2]
[398901146,1765981334067,150.0,8.51e-05,2]
[398901147,1765981334438,288.41,9.284e-05,2]
[398901148,1765981336438,-218.62691358,0.00010057,2]
[398901149,1765981359147,5000.0,0.0001001,2]
[398901150,1765981382148,5000.0,0.0001001,2]
[398901151,1765981406156,5000.0,0.0001001,2]
[398901152,1765981414977,150.0,8.468e-05,2]
[398901153,1765981415529,277.25,9.238e-05,2]
[398901154,1765981416000,415.88,0.00010008,2]
[398901155,1765981497758,150.0,8.445e-05,2]
[398901156,1765981498198,255.79,9.213e-05,2]
[398901157,1765981498638,383.68,9.981e-05,2]
[398901158,1765981510036,160.20950262,0.00019,120]
[398901159,1765981510449,160.20950262,0.00019,120]
[398901161,1765981587971,150.0,8.46e-05,2]
[398901162,1765981588466,235.69,9.229e-05,2]
[398901163,1765981588930,353.54,9.999e-05,2]
[398901165,1765981671118,150.0,8.481e-05,2]
[398901166,1765981671516,216.88,9.252e-05,2]
[398901168,1765981681546,-218.36568363,0.00010022,2]
[398901171,1765981749139,-5000.0,0.00010562,2]
[398901172,1765981749165,-150.0,0.00010709,2]
[398901173,1765981749191,-300.0,0.00011125,2]
[398901174,1765981749217,-1200.0,0.00011126,2]
[398901175,1765981749240,-1200.0,0.00011126,2]
[398901176,1765981749264,-300.0,0.00011127,2]
[398901177,1765981749291,-300.0,0.00011127,2]
[398901178,1765981749314,-300.0,0.00011127,2]
[398901179,1765981749339,-576.0,0.00011128,2]
[398901180,1765981749364,-158.72,0.00011129,2]
[398901181,1765981749394,-252.334,0.00011129,2]
[398901182,1765981749420,-6831.99848654,0.000114,2]
[398901183,1765981749446,-420.0,0.00012224,2]
[398901184,1765981749471,-275.0,0.00012225,2]
[398901185,1765981749494,-420.0,0.00012226,2]
[398901186,1765981749518,-300.0,0.00012226,2]
[398901187,1765981749542,-669.0,0.00012239,2]
[398901188,1765981749565,-5884.32527763,0.000125,2]
[398901189,1765981749590,-177.0,0.00012709,2]
[398901190,1765981749614,-568.17882407,0.00013105,2]
[398901191,1765981749640,-500.0,0.00013105,2]
[398901192,1765981749664,-500.0,0.00013105,2]
[398901193,1765981749688,-500.0,0.00013105,2]
[398901194,1765981749714,-500.0,0.00013105,2]
[398901195,1765981749736,-500.0,0.00013105,2]
[398901196,1765981749759,-500.0,0.00013105,2]
[398901197,1765981749783,-500.0,0.00013105,2]
[398901198,1765981749809,-500.0,0.00013105,2]
[398901199,1765981749834,-500.0,0.00013105,2]
[398901200,1765981749863,-500.0,0.00013105,2]
[398901201,1765981749889,-556.05360146,0.00013105,2]
[398901202,1765981749913,-500.0,0.00013105,2]
[398901203,1765981749938,-500.0,0.00013105,2]
[398901204,1765981749960,-392.70758996,0.00013105,2]
[398901205,1765981749985,-500.0,0.00013105,2]
[398901206,1765981750009,-500.0,0.00013105,2]
[398901207,1765981750034,-500.0,0.00013105,2]
[398901208,1765981750058,-500.0,0.00013105,2]
[398901209,1765981750081,-500.0,0.00013105,2]
[398901210,1765981750105,-500.0,0.00013105,2]
[398901211,1765981750129,-500.0,0.00013105,2]
[398901212,1765981750154,-500.0,0.00013105,2]
[398901213,1765981750178,-500.0,0.00013105,2]
[398901214,1765981750203,-500.0,0.00013105,2]
[398901215,1765981750228,-500.0,0.00013105,2]
[398901216,1765981750254,-500.0,0.00013105,2]
[398901217,1765981750278,-500.0,0.00013105,2]
[398901218,1765981750303,-500.0,0.00013105,2]
[398901219,1765981750331,-500.0,0.00013105,2]
[398901220,1765981750356,-500.0,0.00013105,2]
[398901221,1765981750381,-500.0,0.00013105,2]
[398901222,1765981750405,-500.0,0.00013105,2]
[398901223,1765981750431,-258.51339998,0.00013105,2]
[398901224,1765981750455,-500.0,0.00013105,2]
[398901225,1765981750479,-500.0,0.00013105,2]
[398901226,1765981750503,-500.0,0.00013105,2]
[398901227,1765981750526,-500.0,0.00013105,2]
[398901228,1765981750549,-500.0,0.00013105,2]
[398901229,1765981750574,-500.0,0.00013105,2]
[398901230,1765981750598,-500.0,0.00013105,2]
[398901231,1765981750628,-500.0,0.00013105,2]
[398901232,1765981750651,-500.0,0.00013105,2]
[398901233,1765981750673,-500.0,0.00013105,2]
[398901234,1765981750696,-500.0,0.00013105,2]
[398901235,1765981750729,-500.0,0.00013105,2]
[398901236,1765981750755,-500.0,0.00013105,2]
[398901237,1765981750780,-500.0,0.00013105,2]
[398901238,1765981750915,-500.0,0.00013105,2]
[398901239,1765981750940,-500.0,0.00013105,2]
[398901240,1765981750965,-500.0,0.00013105,2]
[398901241,1765981750989,-500.0,0.00013105,2]
[398901242,1765981751014,-500.0,0.00013105,2]
[398901243,1765981751038,-500.0,0.00013105,2]
[398901244,1765981751062,-500.0,0.00013105,2]
[398901245,1765981751099,-500.0,0.00013105,2]
[398901246,1765981751124,-562.07200923,0.00013105,2]
[398901247,1765981751154,-500.0,0.00013105,2]
[398901248,1765981751178,-500.0,0.00013105,2]
[398901249,1765981751203,-500.0,0.00013105,2]
[398901250,1765981751228,-500.0,0.00013105,2]
[398901251,1765981751252,-500.0,0.00013105,2]
[398901252,1765981751277,-500.0,0.00013105,2]
[398901253,1765981751305,-500.0,0.00013105,2]
[398901254,1765981751329,-500.0,0.00013105,2]
[398901255,1765981751353,-500.0,0.00013105,2]
[398901256,1765981751378,-500.0,0.00013105,2]
[398901257,1765981751402,-500.0,0.00013105,2]
[398901258,1765981751427,-500.0,0.00013105,2]
[398901259,1765981751452,-500.0,0.00013105,2]
[398901260,1765981751476,-500.0,0.00013105,2]
[398901261,1765981751501,-550.0,0.00013105,2]
[398901262,1765981751525,-500.0,0.00013105,2]
[398901263,1765981751553,-500.0,0.00013105,2]
[398901264,1765981751577,-500.0,0.00013105,2]
[398901265,1765981751601,-500.0,0.00013273,2]
[398901266,1765981751624,-500.0,0.00013273,2]
[398901267,1765981751647,-549.24999872,0.00013273,2]
[398901268,1765981751671,-500.0,0.00013273,2]
[398901269,1765981751694,-587.0,0.00013431,2]
[398901270,1765981751721,-300.0,0.00013673,2]
[398901271,1765981751745,-1000.0,0.00013699,2]
[398901272,1765981751769,-500.0,0.00013699,2]
[398901273,1765981751793,-279.99611821,0.00013699,2]
[398901274,1765981751816,-500.0,0.00013699,2]
[398901275,1765981751840,-500.0,0.00013699,2]
[398901276,1765981751864,-352.93715456,0.00013754,2]
[398901277,1765981751887,-500.0,0.00013821,2]
[398901278,1765981751910,-12437.8332008,0.0001457,2]
[398901279,1765981751937,-204.0,0.00014709,2]
[398901280,1765981751961,-335.0,0.00014757,2]
[398901281,1765981754235,150.0,8.502e-05,2]
[398901282,1765981754681,218.99,9.275e-05,2]
[398901283,1765981755149,328.49,0.00010048,2]
[398901284,1765981755584,437.99,0.00010821,2]
[398901285,1765981756031,547.48,0.00011594,2]
[398901286,1765981756480,656.98,0.00012367,2]
[398901287,1765981756871,766.47,0.0001314,2]
[398901288,1765981757297,875.97,0.00013913,2]
[398901289,1765981757714,985.47,0.00014686,2]
[398901290,1765981831320,150.0,8.932e-05,2]
[398901299,1765981831747,150.0,9.744e-05,2]
[398901312,1765981831965,-439.461,0.0001469,2]
[398901328,1765981832127,-1080.36649452,0.0001469,2]
[398901331,1765981832149,-512.096,0.0001469,2]
[398901659,1765981843579,-150.0,0.00010556,2]
[398901660,1765981843590,-193.29,0.00011368,2]
[398901661,1765981843599,-241.61,0.0001218,2]
[398901662,1765981843609,-44.24994492,0.00012992,2]
[398901691,1765981907889,150.0,8.509e-05,2]
[398901692,1765981908380,150.0,9.283e-05,2]
[398901693,1765981954615,5000.0,0.0001001,2]
[398901695,1765981978174,5000.0,0.0001001,2]
[398901696,1765981983245,150.0,8.551e-05,2]
[398901697,1765981984170,150.0,9.328e-05,2]
[398901698,1765982001952,5000.0,0.0001001,2]
[398901699,1765982025880,5000.0,0.0001001,2]
[398901700,1765982049734,656.91895815,0.0001001,2]
[398901701,1765982133472,150.0,8.431e-05,2]
[398901702,1765982205275,150.0,8.485e-05,2]
[398901703,1765982205675,150.0,9.256e-05,2]
[398901704,1765982276229,150.0,8.477e-05,2]
[398901705,1765982276626,150.0,9.248e-05,2]
[398901706,1765982278469,-150.0,0.00010028,2]
[398901707,1765982347787,150.0,8.514e-05,2]
[398901708,1765982348203,150.0,9.288e-05,2]
[398901709,1765982412309,-150.0,0.00010062,2]
[398901710,1765982412331,-167.85376095,0.00010062,2]
[398901711,1765982414510,-266.34140231,0.00010062,2]
[398901712,1765982417939,150.0,8.499e-05,2]
[398901713,1765982418375,150.0,9.271e-05,2]
[398901714,1765982446156,500.000001,0.0001,2]
[398901715,1765982484745,150.0,8.533e-05,2]
[398901716,1765982485617,150.0,9.309e-05,2]
[398901717,1765982502324,-150.0,0.00010044,2]
[398901718,1765982502347,-150.0,0.00010053,2]
[398901719,1765982502370,-14.16885963,0.00010062,2]
[398901720,1765982551641,150.0,8.549e-05,2]
[398901725,1765982979003,-112.63597711,0.00010062,2]
[398901726,1765982979026,-150.0,0.00011038,2]
[398901727,1765982979050,-227.36402289,0.00012014,7]
[398901794,1765983036556,-605.0,0.00013038,2]
[398901795,1765983036565,-177.0,0.00013038,2]
[398901796,1765983036575,-172.63951897,0.00013273,2]
[398901798,1765983036585,-771.447338,0.00013699,2]
[398901800,1765983036594,-1299.2052827,0.00013784,2]
[398901802,1765983036607,-204.0,0.00015038,2]
[398901804,1765983036617,-1091.625566,0.00015497,2]
[398901806,1765983036626,-1299.2052827,0.00015646,2]
[398901808,1765983036635,-1200.0,0.00015658,2]
[398901810,1765983036643,-300.0,0.00015659,2]
[398901812,1765983036652,-300.0,0.00015659,2]
[398901814,1765983036661,-300.0,0.00015659,2]
[398901816,1765983036671,-300.0,0.00015659,2]
[398901817,1765983036681,-1200.0,0.0001566,2]
[398901818,1765983036690,-231.0,0.00017038,2]
[398901819,1765983036699,-300.0,0.00017126,2]
[398901820,1765983036708,-462.0,0.00017128,2]
[398901821,1765983036718,-1299.2052827,0.00017509,2]
[398901822,1765983036727,-198.08824625,0.00018295,2]
[398901823,1765983036736,-4376.93750604,0.00018894,2]
[398901824,1765983036745,-500.0,0.00018993,2]
[398901825,1765983036754,-500.0,0.00018993,2]
[398901826,1765983036764,-500.0,0.00018993,2]
[398901827,1765983036773,-500.0,0.00018993,2]
[398901828,1765983036782,-500.0,0.00018993,2]
[398901829,1765983036791,-500.0,0.00018993,2]
[398901830,1765983036801,-154.74528777,0.00018993,2]
[398901831,1765983036810,-500.0,0.00018993,2]
[398901832,1765983036819,-277.35189095,0.00018993,2]
[398901833,1765983036828,-500.0,0.00018993,2]
[398901834,1765983036838,-500.0,0.00018993,2]
[398901835,1765983036852,-500.0,0.00018993,2]
[398901836,1765983036861,-500.0,0.00018993,2]
[398901837,1765983036873,-500.0,0.00018993,2]
[398901838,1765983036883,-500.0,0.00018993,2]
[398901839,1765983036893,-500.0,0.00018993,2]
[398901840,1765983036902,-500.0,0.00018993,2]
[398901841,1765983036912,-500.0,0.00018993,2]
[398901842,1765983036922,-500.0,0.00018993,2]
[398901843,1765983036932,-500.0,0.00018993,2]
[398901844,1765983036942,-500.0,0.00018993,2]
[398901845,1765983036952,-500.0,0.00018993,2]
[398901846,1765983036961,-500.0,0.00018993,2]
[398901847,1765983036970,-500.0,0.00018993,2]
[398901848,1765983036979,-601.48679486,0.00018993,2]
[398901849,1765983036988,-500.0,0.00018993,2]
[398901850,1765983036997,-500.0,0.00018993,2]
[398901851,1765983037006,-500.0,0.00018993,2]
[398901852,1765983037016,-500.0,0.00018993,2]
[398901853,1765983037025,-500.0,0.00018993,2]
[398901854,1765983037035,-261.20720092,0.00018993,2]
[398901855,1765983037044,-500.0,0.00018993,2]
[398901856,1765983037054,-500.0,0.00018993,2]
[398901857,1765983037066,-500.0,0.00018993,2]
[398901858,1765983037077,-500.0,0.00018993,2]
[398901859,1765983037086,-500.0,0.00018993,2]
[398901860,1765983037096,-379.45888641,0.00018993,2]
[398901861,1765983037109,-500.0,0.00018993,2]
[398901862,1765983037118,-500.0,0.00018993,2]
[398901863,1765983037128,-500.0,0.00018993,2]
[398901864,1765983037138,-500.0,0.00018993,2]
[398901865,1765983037147,-500.0,0.00018993,2]
[398901866,1765983037157,-500.0,0.00018993,2]
[398901867,1765983037167,-500.0,0.00018993,2]
[398901868,1765983037176,-500.0,0.00018993,2]
[398901869,1765983037186,-500.0,0.00018993,2]
[398901870,1765983037196,-500.0,0.00018993,2]
[398901871,1765983037205,-500.0,0.00018993,2]
[398901872,1765983037216,-500.0,0.00018993,2]
[398901873,1765983037225,-500.0,0.00018993,2]
[398901874,1765983037234,-500.0,0.00018993,2]
[398901875,1765983037243,-500.0,0.00018993,2]
[398901876,1765983037253,-500.0,0.00018993,2]
[398901877,1765983037262,-500.0,0.00018993,2]
[398901878,1765983037271,-500.0,0.00018993,2]
[398901879,1765983037281,-500.0,0.00018993,2]
[398901880,1765983037291,-500.0,0.00018993,2]
[398901881,1765983037300,-500.0,0.00018993,2]
[398901882,1765983037309,-500.0,0.00018993,2]
[398901883,1765983037319,-247.05600819,0.00018999,2]
[398901884,1765983037328,-441.18146075,0.00018999,2]
[398901885,1765983037339,-353.60810373,0.00019,30]
[398901886,1765983037353,-16275.08464158,0.00019,2]
[398901887,1765983037363,-258.0,0.00019038,2]
[398901888,1765983037371,-1299.2052827,0.00019371,2]
[398901889,1765983037382,-1721.38819295,0.0002,2]
[398901890,1765983037392,-9009.42855783,0.0002,7]
[398901891,1765983037401,-771.447338,0.00020187,2]
[398901892,1765983037411,-285.0,0.00021038,2]
[398901893,1765983037423,-2777.83,0.00022,2]
[398901894,1765983037433,-290.86660599,0.00022,14]
[398901895,1765983037443,-393.4,0.00023014,2]
[398901896,1765983037453,-312.0,0.00023038,2]
[398901897,1765983037463,-1091.625566,0.00023245,2]
[398901898,1765983037472,-160.0,0.0002447,2]
[398901899,1765983037482,-363.03,0.00024991,10]
[398901900,1765983037491,-34366.15490806,0.00025001,2]
[398901925,1765983038259,-6104.62934326,0.00025001,2]
[398901929,1765983038284,-255.00685901,0.00025001,2]
[398901931,1765983038295,-14457.16212137,0.00025001,2]
[398901933,1765983038305,-2979.28993063,0.00025011,2]
[398902149,1765983040432,-915.56306572,0.00025011,2]
[398902432,1765983043325,-12513.3278408,0.00025011,2]
[398902434,1765983043342,-3591.81916285,0.00025011,2]
[398902436,1765983043352,-368.626878,0.00025011,2]
[398902438,1765983043363,-260.0,0.00025018,2]
[398902441,1765983043376,-339.0,0.00025038,2]
[398902443,1765983043385,-1039.52400316,0.00025395,2]
[398902445,1765983043397,-672.80841133,0.00025395,2]
[398902448,1765983043422,-256.2,0.00025395,2]
[398902452,1765983043433,-2408.40509155,0.00025395,2]
[398902454,1765983043442,-440.0,0.00025566,2]
[398902456,1765983043452,-175.01959103,0.000257,2]
[398902458,1765983043460,-175.01959103,0.000257,2]
[398902460,1765983043470,-1670.16112786,0.00026,30]
[398902462,1765983043479,-194.23933143,0.0002616,2]
[398902464,1765983043488,-2674.51060585,0.0002638,2]
[398902466,1765983043498,-7717.53540253,0.0002638,2]
[398902468,1765983043509,-1107.6836066,0.0002638,2]
[398902713,1765983046512,-9240.27038502,0.0002638,2]
[398902714,1765983046522,-771.447338,0.00026676,2]
[398902715,1765983046531,-253.83507559,0.00027014,2]
[398902716,1765983046541,-456.90313606,0.00027014,2]
[398902717,1765983046551,-302.65260909,0.00027014,2]
[398902718,1765983046560,-349.99846512,0.00027014,2]
[398902719,1765983046570,-188.70465157,0.00027014,2]
[398902720,1765983046580,-1301.71765736,0.00027189,2]
[398902721,1765983046589,-1301.71765736,0.00027216,2]
[398902722,1765983046599,-1301.71765736,0.00027243,2]
[398902723,1765983046608,-1301.71765736,0.0002727,2]
[398902724,1765983046619,-652.4,0.00027287,3]
[398902725,1765983046628,-302.53,0.0002729,10]
[398902726,1765983046638,-1301.71765736,0.00027297,2]
[398902727,1765983046648,-47294.47650891,0.000273,2]
[398902756,1765983199788,150.0,8.817e-05,2]
[398902757,1765983200234,150.0,9.619e-05,2]
[398902760,1765983531906,150.0,9.637e-05,2]
[398902761,1765983597807,150.0,9.667e-05,2]
[398902777,1765984004158,150.0,9.552e-05,2]
[398902778,1765984074489,150.0,9.562e-05,2]
[398902779,1765984144724,150.0,9.33e-05,2]
[398902780,1765984212254,-150.0,0.00010178,2]
[398902781,1765984212276,-24.13452366,0.00010178,2]
[398902782,1765984215653,150.0,9.152e-05,2]
[398902783,1765984217041,150.0,9.984e-05,2]
[398902826,1765984232797,-512.35140376,0.00010178,2]
[398902828,1765984232808,-26.51407258,0.00010178,2]
[398902830,1765984232820,-166.24067748,0.00010178,2]
[398902832,1765984232829,-500.0,0.00010513,2]
[398902834,1765984232838,-98.21524994,0.00010513,2]
[398902873,1765984238671,-223.2824018,0.00010513,2]
[398902875,1765984238680,-76.796465,0.00010816,2]
[398902878,1765984238691,-73.203535,0.00010816,2]
[398902880,1765984238701,-150.0,0.00011648,2]
[398902881,1765984238710,-150.0,0.0001248,2]
[398902883,1765984238719,-150.0,0.00013312,2]
[398902885,1765984238729,-1576.84146048,0.00013699,2]
[398902891,1765984238778,-1013.79453952,0.00013699,2]
[398902893,1765984238789,-150.0,0.00014144,2]
[398902895,1765984238798,-275.0,0.00018989,2]
[398902897,1765984238808,-1195.40537896,0.00018989,2]
[398903105,1765984240755,-4.59462104,0.00018989,2]
[398903107,1765984240764,-415.0,0.0001899,2]
[398903109,1765984240774,-300.0,0.00018991,2]
[398903111,1765984240783,-300.0,0.00018991,2]
[398903113,1765984240793,-172.93920573,0.00018992,2]
[398903115,1765984240803,-308.82702253,0.00018992,2]
[398903117,1765984240812,-40141.9667354,0.00018993,2]
[398903119,1765984240823,-2000.0,0.00019999,7]
[398903121,1765984240831,-2000.0,0.00021999,14]
[398903123,1765984240841,-360.6,0.00023104,2]
[398903125,1765984240850,-9448.96128683,0.00024495,2]
[398903127,1765984240859,-2000.0,0.00025999,15]
[398903129,1765984240867,-1000.0,0.00027,10]
[398903131,1765984240877,-1000.0,0.00027,10]
[398903132,1765984240886,-1000.0,0.00027,20]
[398903134,1765984240896,-1000.0,0.00027,2]
[398903136,1765984240905,-1000.0,0.00027,10]
[398903138,1765984240914,-2000.0,0.00027286,3]
[398903140,1765984240923,-2000.0,0.00027289,10]
[398903143,1765984240932,-637.27,0.0002729,10]
[398903144,1765984240943,-2000.0,0.00027299,2]
[398903146,1765984240952,-35330.85866997,0.000273,2]
[398903421,1765984244040,-214556.93684262,0.000273,2]
[398903424,1765984244057,-1722715.82806601,0.000273,2]
[398903426,1765984244066,-151.0,0.000273,2]
[398903428,1765984244075,-151.0,0.000273,2]
[398903430,1765984244084,-226.68261486,0.000273,2]
[398903432,1765984244093,-334.13057573,0.00027319,2]
[398903434,1765984244103,-400.0,0.0002739,2]
[398903436,1765984244112,-150.0,0.0002739,2]
[398903438,1765984244122,-300.0,0.00027395,2]
[398903440,1765984244131,-6119.69,0.000274,2]
[398903442,1765984244140,-151.0,0.000274,11]
[398903444,1765984244150,-52423.8055701,0.0002749,2]
[398903447,1765984244160,-45871.11954431,0.000275,2]
[398903448,1765984244169,-104847.61114,0.0002799,2]
[398903450,1765984244178,-15296.52153383,0.00028,2]
[398903453,1765984244189,-2001.90550667,0.00028,2]
[398903455,1765984244198,-53705.47393899,0.00028,2]
[398903457,1765984244207,-162.84,0.00028429,120]
[398903459,1765984244217,-285.89994538,0.0002849,120]
[398903461,1765984244226,-821.58386664,0.0002876,120]
[398903463,1765984244237,-26829.56598853,0.0002876,2]
[398903465,1765984244247,-52423.8055701,0.00028902,2]
[398903467,1765984244256,-888.77481785,0.00029,2]
[398903469,1765984244265,-10495.46,0.00029,2]
[398903471,1765984244274,-151.0,0.000297,14]
[398903473,1765984244285,-10000.0,0.000299,2]
[398903475,1765984244294,-52423.8055701,0.0002998,2]
[398903477,1765984244303,-366966.638991,0.0002999,2]
[398903479,1765984244312,-317585.00317503,0.0003,2]
[398903481,1765984244321,-411.2152161,0.0003,10]
[398903483,1765984244330,-345.35956885,0.0003,30]
[398903485,1765984244341,-17895.15786238,0.0003,2]
[398903487,1765984244350,-40211.61446744,0.0003,2]
[398903489,1765984244360,-269.18510272,0.0003,2]
[398903491,1765984244369,-458.0,0.0003,30]
[398903493,1765984244377,-360.6,0.00030095,3]
[398903495,1765984244386,-500.0,0.00030137,15]
[398903497,1765984244395,-500.0,0.00030685,15]
[398903499,1765984244405,-176.145,0.00031037,28]
[398903501,1765984244416,-1129.37500003,0.0003112,2]
[398903503,1765984244427,-6119.69,0.000312,2]
[398903505,1765984244436,-302.4071107,0.0003141,30]
[398903507,1765984244445,-381.7942451,0.0003141,30]
[398903509,1765984244454,-302.4071107,0.0003141,30]
[398903511,1765984244463,-306.0,0.0003141,30]
[398903513,1765984244472,-302.4071107,0.0003141,30]